bitfinex-derivatives/quotes_BTCF0:USTF0_20260207
["timestamp","ask_amount","ask_price","bid_price","bid_amount"]
[1770437084397,0.04833127,71296.0,71260.0,0.05038526]
[1770437084590,0.06236727,71294.0,71260.0,0.05038526]
[1770437084790,0.04833127,71293.0,71260.0,0.05038526]
[1770437084999,0.04833127,71293.0,71241.0,0.070231]
[1770437085000,0.04833127,71293.0,71262.0,0.06442726]
[1770437085200,0.04833127,71293.0,71263.0,0.05038526]
[1770437085591,0.04833127,71293.0,71264.0,0.014041]
[1770437085796,0.04833127,71293.0,71264.0,0.06442626]
[1770437086001,0.04833127,71293.0,71264.0,0.05038526]
[1770437086303,0.014034,71302.0,71265.0,0.06442626]
[1770437086504,0.04833127,71304.0,71267.0,0.014041]
[1770437086693,0.04833127,71304.0,71266.0,0.05038526]
[1770437086694,0.014034,71303.0,71266.0,0.05038526]
[1770437086894,0.04833127,71299.0,71266.0,0.05038526]
[1770437087104,0.04833127,71299.0,71266.0,0.06442626]
[1770437087399,0.04833127,71297.0,71260.0,0.014042]
[1770437087596,0.04833127,71297.0,71263.0,0.014041]
[1770437087905,0.04833127,71297.0,71264.0,0.05038526]
[1770437088401,0.04833127,71297.0,71266.0,0.014041]
[1770437088903,0.04833127,71296.0,71264.0,0.05038526]
[1770437089104,0.04833127,71296.0,71265.0,0.014041]
[1770437089306,0.04833127,71296.0,71245.0,0.070227]
[1770437089307,0.04833127,71294.0,71260.0,0.014042]
[1770437089707,0.04833127,71294.0,71264.0,0.014041]
[1770437089908,0.04833127,71293.0,71262.0,0.014042]
[1770437090299,0.04833127,71293.0,71266.0,0.014041]
[1770437092006,0.04833127,71291.0,71261.0,0.014042]
[1770437092202,0.04833127,71291.0,71245.0,0.05038526]
[1770437092404,0.04833127,71275.0,71245.0,0.05038526]
[1770437092606,0.04833127,71273.0,71246.0,0.014045]
[1770437092800,0.04833127,71261.0,71230.0,0.1381323]
[1770437093011,0.04833127,71250.0,71221.0,0.01405]
[1770437093305,0.04833127,71245.0,71212.0,0.05038526]
[1770437093510,0.04833127,71245.0,71218.0,0.01405]
[1770437093709,0.04833127,71245.0,71212.0,0.05038526]
[1770437093710,0.04833127,71254.0,71225.0,0.014049]
[1770437093911,0.04833127,71251.0,71225.0,0.014049]
[1770437094206,0.04833127,71243.0,71218.0,0.01405]
[1770437094409,0.00040029,71241.0,71217.0,0.014051]
[1770437094609,0.04833127,71243.0,71224.0,0.014049]
[1770437094802,0.04833127,71243.0,71212.0,0.05038526]
[1770437095203,0.06237527,71249.0,71212.0,0.05038526]
[1770437095402,0.04833127,71248.0,71222.0,0.01405]
[1770437095999,0.04833127,71246.0,71212.0,0.05038526]
[1770437096299,0.04833127,71243.0,71218.0,0.01405]
[1770437096502,0.04833127,71243.0,71201.0,0.05038526]
[1770437096703,0.04833127,71233.0,71203.0,0.014053]
[1770437096901,0.04833127,71225.0,71199.0,0.014054]
[1770437097107,0.04833127,71222.0,71198.0,0.014054]
[1770437097304,0.04833127,71221.0,71178.0,0.05038526]
[1770437097503,0.04833127,71216.0,71178.0,0.05038526]
[1770437097808,0.04833127,71214.0,71178.0,0.05038526]
[1770437098006,0.06238327,71209.0,71184.0,0.014057]
[1770437098206,0.04833127,71213.0,71178.0,0.05038526]
[1770437098409,0.04833127,71233.0,71186.0,0.014057]
[1770437098710,0.04833127,71202.0,71168.0,0.05038526]
[1770437098910,0.014049,71224.0,71168.0,0.05038526]
[1770437098911,0.014054,71198.0,71171.0,0.01406]
[1770437099108,0.04833127,71198.0,71168.0,0.05038526]
[1770437099513,0.04833127,71198.0,71160.0,0.1381323]
[1770437099917,0.04833127,71197.0,71170.0,0.01406]
[1770437100109,0.04833127,71195.0,71170.0,0.01406]
[1770437100610,0.070253,71220.0,71153.0,0.014063]
[1770437100611,0.06238127,71221.0,71195.0,0.014055]
[1770437100800,0.04833127,71213.0,71185.0,0.014057]
[1770437101005,0.04833127,71213.0,71160.0,0.10748606]
[1770437101006,0.04833127,71213.0,71184.0,0.014057]
[1770437101206,0.04833127,71211.0,71184.0,0.014057]
[1770437101401,0.014052,71212.0,71184.0,0.014057]
[1770437101402,0.04833127,71221.0,71198.0,0.014054]
[1770437101608,0.5,71213.0,71200.0,0.014054]
[1770437101817,0.04833127,71232.0,71211.0,0.014052]
[1770437102015,0.06238027,71228.0,71188.0,0.05038526]
[1770437102309,0.04833127,71245.0,71208.0,0.014052]
[1770437102508,0.04833127,71238.0,71208.0,0.014052]
[1770437103104,0.014048,71232.0,71206.0,0.05038526]
[1770437103310,0.04833127,71238.0,71207.0,0.014053]
[1770437103715,0.04833127,71238.0,71213.0,0.014051]
[1770437104011,0.04833127,71237.0,71211.0,0.001]
[1770437104407,0.04833127,71231.0,71207.0,0.014053]
[1770437104603,0.04833127,71230.0,71205.0,0.014053]
[1770437105012,0.04833127,71230.0,71208.0,0.014052]
[1770437105812,0.5,71238.0,71197.0,0.014055]
[1770437106007,0.014046,71240.0,71211.0,0.014052]
[1770437106212,0.05117152,71237.0,71207.0,0.014053]
[1770437106513,0.05117152,71237.0,71197.0,0.05014194]
[1770437106514,0.05117152,71237.0,71210.0,0.014052]
[1770437106713,0.014047,71236.0,71210.0,0.014052]
[1770437107014,0.05117152,71236.0,71214.0,0.014051]
[1770437107210,0.04617152,71236.0,71214.0,0.014051]
[1770437107412,0.05137152,71270.0,71227.0,0.05014194]
[1770437107612,0.0002,71270.0,71237.0,0.05014194]
[1770437107808,0.05117152,71268.0,71240.0,0.014046]
[1770437108015,0.014037,71288.0,71233.0,0.014047]
[1770437108016,0.06521352,71261.0,71233.0,0.014047]
[1770437108217,0.05117152,71258.0,71229.0,0.014048]
[1770437108418,0.05117152,71258.0,71232.0,0.014048]
[1770437108618,0.0508911,71255.0,71228.0,0.014048]
[1770437108809,0.0508911,71255.0,71231.0,0.014048]
[1770437109220,0.0649341,71255.0,71231.0,0.014048]
[1770437109520,0.0649341,71255.0,71220.0,0.1381323]
[1770437109521,0.0508911,71254.0,71227.0,0.014049]
[1770437109815,0.00040029,71239.0,71230.0,0.014048]
[1770437110208,0.0649321,71266.0,71224.0,0.05375097]
[1770437110413,0.0508911,71276.0,71236.0,0.05375097]
[1770437110617,0.014039,71275.0,71249.0,0.014044]
[1770437111013,0.0649301,71276.0,71236.0,0.05375097]
[1770437111216,0.0508911,71261.0,71225.0,0.16123703]
[1770437111418,0.0508911,71256.0,71217.0,0.05375097]
[1770437111718,0.0508911,71256.0,71237.0,0.014047]
[1770437111921,0.0508911,71256.0,71224.0,0.014049]
[1770437112113,0.0508911,71249.0,71219.0,0.01405]
[1770437112521,0.01404,71273.0,71210.0,0.1381323]
[1770437112522,0.0508911,71247.0,71211.0,0.05375097]
[1770437113016,0.0508911,71247.0,71226.0,0.014049]
[1770437113212,0.0508911,71251.0,71226.0,0.014049]
[1770437113610,0.014044,71250.0,71226.0,0.014049]
[1770437113816,0.0508911,71249.0,71221.0,0.01405]
[1770437114125,0.0649361,71247.0,71224.0,0.014049]
[1770437115220,0.0508911,71247.0,71224.0,0.014049]
[1770437115422,0.014046,71239.0,71214.0,0.014051]
[1770437115615,0.0508911,71236.0,71210.0,0.014052]
[1770437116014,0.0508911,71231.0,71206.0,0.014053]
[1770437116419,0.014049,71228.0,71201.0,0.014054]
[1770437116615,0.0649401,71225.0,71197.0,0.014054]
[1770437116817,0.0508911,71215.0,71187.0,0.014056]
[1770437117022,0.0508911,71227.0,71195.0,0.05375097]
[1770437117221,0.014049,71227.0,71197.0,0.014055]
[1770437117417,0.0508911,71211.0,71179.0,0.10748606]
[1770437117728,0.0508911,71210.0,71184.0,0.014057]
[1770437117917,0.0508911,71210.0,71188.0,0.014056]
[1770437118117,0.0508911,71209.0,71177.0,0.10748606]
[1770437118423,0.0508911,71209.0,71185.0,0.014057]
[1770437118624,0.0508911,71220.0,71187.0,0.05375097]
[1770437119323,0.0508911,71220.0,71189.0,0.014056]
[1770437119522,0.0508911,71212.0,71189.0,0.014056]
[1770437119824,0.0508911,71212.0,71196.0,0.014055]
[1770437120021,0.0508911,71223.0,71194.0,0.014055]
[1770437120220,0.0508911,71223.0,71186.0,0.05375097]
[1770437120429,0.0508911,71223.0,71187.0,0.05375097]
[1770437120728,0.0508911,71223.0,71188.0,0.05375097]
[1770437121121,0.0508911,71223.0,71199.0,0.014054]
[1770437121328,0.014044,71253.0,71195.0,0.05375097]
[1770437121329,0.0508911,71234.0,71195.0,0.05375097]
[1770437121521,0.0508911,71234.0,71203.0,0.10999295]
[1770437121721,0.0508911,71234.0,71212.0,0.014052]
[1770437122116,0.0508911,71234.0,71215.0,0.014051]
[1770437122426,0.0508911,71233.0,71208.0,0.10999295]
[1770437122623,0.0508911,71231.0,71206.0,0.12404595]
[1770437122823,0.0508911,71231.0,71208.0,0.12404495]
[1770437123025,0.0508911,71231.0,71211.0,0.014052]
[1770437123826,0.0508911,71231.0,71207.0,0.12404595]
[1770437124028,0.0508911,71229.0,71203.0,0.014053]
[1770437124229,0.0508911,71219.0,71199.0,0.10999295]
[1770437124424,0.0508911,71219.0,71194.0,0.10999295]
[1770437124726,0.0508911,71216.0,71190.0,0.10999295]
[1770437124932,0.0508911,71216.0,71188.0,0.014056]
[1770437125334,0.0508911,71212.0,71188.0,0.014056]
[1770437125536,0.514048,71229.0,71184.0,0.12404995]
[1770437125537,0.0508911,71207.0,71184.0,0.12404995]
[1770437125833,0.0508911,71207.0,71184.0,0.014057]
[1770437126225,0.0508911,71202.0,71180.0,0.12405095]
[1770437126425,0.0508911,71200.0,71179.0,0.10999295]
[1770437126735,0.0508911,71200.0,71176.0,0.17646151]
[1770437126736,0.0508911,71198.0,71174.0,0.10999295]
[1770437127030,0.0508911,71198.0,71176.0,0.014059]
[1770437128036,0.014056,71189.0,71175.0,0.10999295]
[1770437128336,0.014058,71178.0,71152.0,0.014063]
[1770437128531,0.0508911,71180.0,71155.0,0.014063]
[1770437128731,0.014059,71176.0,71151.0,0.014064]
[1770437128931,0.5,71198.0,71164.0,0.05375097]
[1770437129131,0.5,71198.0,71168.0,0.05375097]
[1770437129132,0.497,71198.0,71168.0,0.05375097]
[1770437129335,0.5478911,71198.0,71174.0,0.014059]
[1770437129531,0.5478911,71198.0,71175.0,0.014059]
[1770437130036,0.014053,71206.0,71178.0,0.014058]
[1770437130437,0.0508911,71203.0,71178.0,0.014058]
[1770437130733,0.0508911,71203.0,71171.0,0.16240251]
[1770437130927,0.0508911,71199.0,71176.0,0.014059]
[1770437131232,0.0508911,71199.0,71172.0,0.014059]
[1770437131441,0.0508911,71195.0,71168.0,0.01406]
[1770437131734,0.0508911,71195.0,71171.0,0.01406]
[1770437131935,0.014055,71194.0,71171.0,0.01406]
[1770437132535,0.0508911,71195.0,71171.0,0.01406]
[1770437132830,0.014054,71202.0,71162.0,0.05375097]
[1770437133035,0.0649441,71204.0,71173.0,0.05375097]
[1770437133231,0.01405,71223.0,71162.0,0.21615348]
[1770437133232,0.0508911,71195.0,71162.0,0.21615348]
[1770437133435,0.0508911,71199.0,71163.0,0.05375097]
[1770437133628,0.0508911,71199.0,71178.0,0.014058]
[1770437133824,0.5,71202.0,71168.0,0.05375097]
[1770437134138,0.5,71202.0,71183.0,0.014057]
[1770437134332,0.5,71202.0,71192.0,0.014056]
[1770437134632,0.44523713,71202.0,71194.0,0.014055]
[1770437134840,0.01405,71219.0,71194.0,0.014055]
[1770437135030,0.014048,71229.0,71204.0,0.014053]
[1770437135333,0.0649391,71233.0,71193.0,0.05375097]
[1770437135538,0.0508911,71233.0,71213.0,0.014051]
[1770437135739,0.0508911,71233.0,71209.0,0.014052]
[1770437135938,0.0508911,71233.0,71215.0,0.014051]
[1770437136131,0.0508911,71233.0,71211.0,0.014052]
[1770437136341,0.5508911,71233.0,71217.0,0.014051]
[1770437136533,0.5,71233.0,71217.0,0.014051]
[1770437136739,0.014048,71231.0,71202.0,0.014053]
[1770437136936,0.05499185,71225.0,71198.0,0.014054]
[1770437137442,0.05499185,71225.0,71194.0,0.014055]
[1770437138142,0.05499185,71225.0,71190.0,0.014056]
[1770437138347,0.014051,71217.0,71183.0,0.16240251]
[1770437138541,0.014051,71217.0,71184.0,0.21104549]
[1770437138844,0.014051,71217.0,71185.0,0.21104549]
[1770437139045,0.014051,71217.0,71186.0,0.21104549]
[1770437139245,0.014051,71217.0,71183.0,0.16240251]
[1770437139444,0.014051,71217.0,71192.0,0.014056]
[1770437139640,0.41122616,71212.0,71192.0,0.014056]
[1770437140040,0.014051,71217.0,71192.0,0.014056]
[1770437140241,0.05499185,71244.0,71211.0,0.014052]
[1770437140449,0.014043,71256.0,71208.0,0.05069264]
[1770437140450,0.06903785,71242.0,71208.0,0.05069264]
[1770437140640,0.05499185,71242.0,71218.0,0.01405]
[1770437140841,0.05499185,71242.0,71211.0,0.05069264]
[1770437141242,0.05499185,71242.0,71214.0,0.014051]
[1770437141548,0.05499185,71253.0,71211.0,0.05069264]
[1770437141747,0.05499185,71253.0,71220.0,0.05069264]
[1770437142049,0.06903585,71253.0,71226.0,0.014049]
[1770437142243,0.014044,71250.0,71226.0,0.014049]
[1770437142548,0.014044,71252.0,71226.0,0.014049]
[1770437142751,0.55499185,71253.0,71229.0,0.014048]
[1770437142945,0.56903585,71253.0,71225.0,0.014049]
[1770437143140,0.56903585,71253.0,71228.0,0.014048]
[1770437143446,0.55499185,71253.0,71229.0,0.014048]
[1770437144249,0.05499185,71253.0,71229.0,0.014048]
[1770437144544,0.05499185,71252.0,71217.0,0.16240251]
[1770437144738,0.01404,71272.0,71217.0,0.16240251]
[1770437144739,0.05499185,71242.0,71217.0,0.014051]
[1770437144940,0.05499185,71242.0,71220.0,0.01405]
[1770437145137,0.014042,71260.0,71230.0,0.014048]
[1770437145344,0.05499185,71258.0,71233.0,0.014047]
[1770437145540,0.0002,71273.0,71219.0,0.16240251]
[1770437145541,0.05519185,71273.0,71234.0,0.05069264]
[1770437145847,0.05519185,71273.0,71240.0,0.014046]
[1770437145848,0.014041,71268.0,71240.0,0.014046]
[1770437146044,0.06903185,71272.0,71244.0,0.014045]
[1770437146644,0.05499185,71272.0,71244.0,0.05069264]
[1770437146843,0.0002,71290.0,71247.0,0.05069264]
[1770437146844,0.014038,71282.0,71247.0,0.05069264]
[1770437147044,0.05499185,71281.0,71247.0,0.05069264]
[1770437147244,0.05499185,71278.0,71249.0,0.014044]
[1770437147445,0.05499185,71278.0,71252.0,0.014044]
[1770437147643,0.05499185,71276.0,71248.0,0.014044]
[1770437148251,0.05499185,71287.0,71252.0,0.05069264]
[1770437148452,0.05499185,71287.0,71256.0,0.05069264]
[1770437149140,0.05499185,71287.0,71264.0,0.014041]
[1770437149344,0.05499185,71287.0,71259.0,0.014042]
[1770437150241,0.05499185,71295.0,71251.0,0.05069264]
[1770437150449,0.05499185,71289.0,71261.0,0.014042]
[1770437150650,0.014033,71309.0,71261.0,0.014042]
[1770437150651,0.05499185,71287.0,71261.0,0.014042]
[1770437151146,0.05499185,71282.0,71244.0,0.05069264]
[1770437151341,0.05499185,71281.0,71255.0,0.014043]
[1770437151545,0.05499185,71290.0,71262.0,0.014042]
[1770437151751,0.05499185,71290.0,71266.0,0.014041]
[1770437151951,0.5,71295.0,71270.0,0.01404]
[1770437152457,0.05499185,71298.0,71270.0,0.01404]
[1770437152948,0.05499185,71298.0,71269.0,0.01404]
[1770437154442,0.05499185,71294.0,71269.0,0.01404]
[1770437154642,0.0002,71308.0,71265.0,0.014041]
[1770437154643,0.05499185,71291.0,71265.0,0.014041]
[1770437154950,0.05499185,71289.0,71265.0,0.014041]
[1770437156048,0.014041,71268.0,71242.0,0.014046]
[1770437156241,0.05499185,71268.0,71245.0,0.014045]
[1770437156445,0.05499185,71266.0,71240.0,0.014046]
[1770437156648,0.05499185,71266.0,71243.0,0.014045]
[1770437156843,0.05499185,71266.0,71236.0,0.05069264]
[1770437157044,0.05499185,71266.0,71242.0,0.014046]
[1770437157353,0.014042,71263.0,71240.0,0.014046]
[1770437157651,0.05499185,71266.0,71243.0,0.014045]
[1770437158047,0.05499185,71263.0,71238.0,0.014047]
[1770437158242,0.05499185,71263.0,71241.0,0.014046]
[1770437158447,0.05499185,71263.0,71220.0,0.15228005]
[1770437158448,0.05499185,71263.0,71227.0,0.05069264]
[1770437158655,0.05499185,71263.0,71242.0,0.014046]
[1770437160055,0.05499185,71259.0,71227.0,0.05069264]
[1770437160548,0.05499185,71259.0,71233.0,0.014047]
[1770437160756,0.05499185,71259.0,71229.0,0.014048]
[1770437161057,0.05499185,71254.0,71229.0,0.014048]
[1770437161252,0.014044,71253.0,71229.0,0.014048]
[1770437161452,0.014044,71253.0,71210.0,0.014052]
[1770437161453,0.05499185,71250.0,71225.0,0.014049]
[1770437161949,0.05499185,71250.0,71228.0,0.014048]
[1770437162148,0.05499185,71250.0,71216.0,0.05069264]
[1770437162149,0.05499185,71250.0,71223.0,0.014049]
[1770437162349,0.014039,71274.0,71217.0,0.014051]
[1770437162550,0.014041,71265.0,71238.0,0.014046]
[1770437162749,0.014042,71262.0,71238.0,0.014046]
[1770437162950,0.014041,71264.0,71241.0,0.014046]
[1770437163150,0.014042,71261.0,71237.0,0.014047]
[1770437163456,0.06903385,71262.0,71237.0,0.014047]
[1770437163856,0.05499185,71262.0,71240.0,0.014046]
[1770437164352,0.014041,71269.0,71246.0,0.014045]
[1770437164557,0.05499185,71273.0,71241.0,0.014046]
[1770437164757,0.05499185,71273.0,71232.0,0.05069264]
[1770437164758,0.014041,71268.0,71244.0,0.014045]
[1770437164953,0.014041,71268.0,71237.0,0.05069264]
[1770437165153,0.014041,71268.0,71243.0,0.014045]
[1770437165354,0.01404,71271.0,71237.0,0.05069264]
[1770437165555,0.01404,71271.0,71248.0,0.014045]
[1770437165751,0.05499185,71273.0,71251.0,0.014044]
[1770437165954,0.014038,71282.0,71259.0,0.014042]
[1770437166456,0.04543244,71293.0,71264.0,0.014041]
[1770437166659,0.04543244,71291.0,71258.0,0.0470354]
[1770437166954,0.04543244,71291.0,71270.0,0.01404]
[1770437167156,0.014036,71290.0,71266.0,0.014041]
[1770437167460,0.04543244,71291.0,71262.0,0.0470354]
[1770437167660,0.014037,71288.0,71264.0,0.014041]
[1770437167855,0.014033,71307.0,71256.0,0.014043]
[1770437167856,0.05947044,71280.0,71256.0,0.014043]
[1770437168061,0.04543244,71280.0,71258.0,0.014042]
[1770437168756,0.014039,71277.0,71254.0,0.014043]
[1770437168957,0.04528708,71276.0,71254.0,0.014043]
[1770437169260,0.04528708,71276.0,71240.0,0.66667254]
[1770437169261,0.04528708,71274.0,71245.0,0.16240251]
[1770437169460,0.04528708,71271.0,71249.0,0.014044]
[1770437169661,0.04528708,71271.0,71251.0,0.014044]
[1770437170264,0.05932408,71285.0,71255.0,0.047183]
[1770437170556,0.05932408,71285.0,71261.0,0.014042]
[1770437171063,0.04528708,71285.0,71264.0,0.014041]
[1770437171362,0.04528708,71285.0,71242.0,0.16240251]
[1770437171363,0.04528708,71272.0,71242.0,0.16240251]
[1770437171664,0.014037,71285.0,71239.0,0.20479254]
[1770437171665,0.04528708,71263.0,71239.0,0.17644851]
[1770437171864,0.04528708,71263.0,71239.0,0.014046]
[1770437172065,0.04528708,71263.0,71242.0,0.014046]
[1770437172260,0.05932908,71263.0,71238.0,0.014046]
[1770437172451,0.05932908,71263.0,71237.0,0.16240251]
[1770437172452,0.04528708,71262.0,71240.0,0.014046]
[1770437172658,0.04528708,71262.0,71237.0,0.16240251]
[1770437172860,0.04528708,71262.0,71240.0,0.014046]
[1770437173055,0.0002,71287.0,71237.0,0.16240251]
[1770437173056,0.04528708,71272.0,71243.0,0.047183]
[1770437173255,0.04528708,71282.0,71246.0,0.047183]
[1770437173467,0.04528708,71282.0,71251.0,0.014044]
[1770437173669,0.04528708,71278.0,71250.0,0.014044]
[1770437173871,0.0002,71296.0,71252.0,0.014044]
[1770437173872,0.05932708,71274.0,71252.0,0.014044]
[1770437174061,0.04528708,71274.0,71252.0,0.014044]
[1770437174267,0.04528708,71274.0,71248.0,0.061227]
[1770437174471,0.04528708,71274.0,71249.0,0.21087698]
[1770437174666,0.04528708,71274.0,71254.0,0.014043]
[1770437175763,0.014038,71280.0,71257.0,0.014043]
[1770437175965,0.014038,71283.0,71260.0,0.014042]
[1770437176168,0.014038,71281.0,71257.0,0.014043]
[1770437176469,0.05932508,71281.0,71257.0,0.014043]
[1770437177064,0.014039,71278.0,71253.0,0.17644551]
[1770437177270,0.05932608,71278.0,71255.0,0.014043]
[1770437177472,0.05932608,71278.0,71257.0,0.014043]
[1770437177862,0.04528708,71274.0,71253.0,0.014044]
[1770437178066,0.04528708,71274.0,71254.0,0.21086226]
[1770437178363,0.01404,71273.0,71255.0,0.21086226]
[1770437178567,0.04528708,71274.0,71252.0,0.17644651]
[1770437178768,0.04528708,71274.0,71253.0,0.21086311]
[1770437178962,0.04528708,71274.0,71250.0,0.16240251]
[1770437179167,0.04528708,71274.0,71235.0,0.34995281]
[1770437179168,0.04528708,71259.0,71236.0,0.014047]
[1770437179371,0.04528708,71259.0,71237.0,0.21090853]
[1770437179561,0.04528708,71259.0,71231.0,0.21884054]
[1770437179762,0.04528708,71259.0,71225.0,0.27067085]
[1770437179763,0.04528708,71251.0,71226.0,0.014049]
[1770437179959,0.014045,71247.0,71227.0,0.21092882]
[1770437180162,0.014046,71240.0,71219.0,0.20479254]
[1770437180364,0.04528708,71243.0,71220.0,0.21095824]
[1770437180667,0.04528708,71243.0,71208.0,0.27067085]
[1770437180668,0.04528708,71232.0,71207.0,0.014052]
[1770437180967,0.04528708,71232.0,71208.0,0.21099791]
[1770437181168,0.04528708,71232.0,71203.0,0.014053]
[1770437181371,0.04528708,71229.0,71194.0,0.20479254]
[1770437181565,0.04528708,71221.0,71195.0,0.21102661]
[1770437181765,0.05933708,71218.0,71190.0,0.014056]
[1770437182072,0.014051,71214.0,71191.0,0.21104389]
[1770437182277,0.04528708,71218.0,71183.0,0.20489667]
[1770437182568,0.04528708,71215.0,71184.0,0.21104689]
[1770437182756,0.5,71229.0,71185.0,0.22510389]
[1770437182757,0.04528708,71213.0,71185.0,0.22510389]
[1770437182962,0.04528708,71213.0,71186.0,0.2110603]
[1770437183273,0.014052,71209.0,71182.0,0.047183]
[1770437183569,0.05933908,71209.0,71182.0,0.047183]
[1770437183972,0.04528708,71208.0,71178.0,0.014058]
[1770437184174,0.014055,71198.0,71172.0,0.047183]
[1770437184368,0.41122616,71196.0,71175.0,0.014059]
[1770437184673,0.014054,71202.0,71175.0,0.014059]
[1770437184974,0.5,71209.0,71179.0,0.047183]
[1770437185472,0.5,71209.0,71190.0,0.047183]
[1770437185673,0.5,71209.0,71190.0,0.061239]
[1770437185972,0.01405,71220.0,71193.0,0.014055]
[1770437186160,0.05933608,71224.0,71196.0,0.014055]
[1770437186671,0.0002,71250.0,71202.0,0.047183]
[1770437186672,0.014048,71229.0,71202.0,0.047183]
[1770437186867,0.04528708,71234.0,71202.0,0.047183]
[1770437187073,0.014049,71227.0,71202.0,0.047183]
[1770437187269,0.014048,71231.0,71204.0,0.014053]
[1770437187464,0.04528708,71230.0,71192.0,0.047183]
[1770437187672,0.04528708,71226.0,71195.0,0.014055]
[1770437187974,0.05933808,71217.0,71191.0,0.014056]
[1770437188170,0.04528708,71217.0,71194.0,0.014055]
[1770437188469,0.014052,71212.0,71186.0,0.014057]
[1770437188666,0.04528708,71209.0,71186.0,0.014057]
[1770437189476,0.04528708,71204.0,71181.0,0.014058]
[1770437189674,0.04528708,71204.0,71172.0,0.15698181]
[1770437189876,0.04528708,71204.0,71172.0,0.047183]
[1770437190069,0.04528708,71200.0,71172.0,0.047183]
[1770437190270,0.014055,71198.0,71172.0,0.061242]
[1770437190469,0.04528708,71200.0,71175.0,0.014059]
[1770437190665,0.04528708,71187.0,71158.0,0.10979881]
[1770437190973,0.04528708,71187.0,71152.0,0.047183]
[1770437190974,0.04528708,71187.0,71156.0,0.10979881]
[1770437191169,0.04528708,71187.0,71162.0,0.014061]
[1770437191572,0.04528708,71187.0,71165.0,0.014061]
[1770437191972,0.04528708,71187.0,71161.0,0.014062]
[1770437192173,0.04528708,71187.0,71164.0,0.014061]
[1770437192375,0.014055,71194.0,71167.0,0.01406]
[1770437192676,0.04528708,71198.0,71163.0,0.014061]
[1770437192677,0.014056,71191.0,71163.0,0.014061]
[1770437193071,0.04528708,71190.0,71163.0,0.014061]
[1770437193981,0.04528708,71188.0,71163.0,0.014061]
[1770437194672,0.04528708,71188.0,71148.0,0.10979881]
[1770437194877,0.014061,71166.0,71142.0,0.047183]
[1770437195177,0.014062,71162.0,71136.0,0.014067]
[1770437195370,0.014063,71157.0,71132.0,0.047183]
[1770437195570,0.014062,71158.0,71132.0,0.047183]
[1770437195781,0.014063,71155.0,71132.0,0.047183]
[1770437196083,0.014063,71156.0,71128.0,0.014068]
[1770437196386,0.014063,71156.0,71105.0,0.20479254]
[1770437196387,0.06773356,71132.0,71104.0,0.014073]
[1770437196594,0.06773356,71132.0,71082.0,0.070389]
[1770437196595,0.05366556,71127.0,71088.0,0.05412203]
[1770437196888,0.014071,71113.0,71088.0,0.05412203]
[1770437197093,0.014071,71113.0,71057.0,0.014082]
[1770437197094,0.014071,71114.0,71080.0,0.014078]
[1770437197300,0.05366556,71113.0,71083.0,0.014077]
[1770437197498,0.014072,71108.0,71077.0,0.05412203]
[1770437197787,0.05366556,71112.0,71082.0,0.014077]
[1770437197987,0.05366556,71124.0,71097.0,0.014074]
[1770437198192,0.05366556,71124.0,71093.0,0.014075]
[1770437198394,0.014069,71123.0,71093.0,0.014075]
[1770437198589,0.01407,71120.0,71090.0,0.05412203]
[1770437199199,0.05366556,71119.0,71090.0,0.05412203]
[1770437199385,0.05366556,71109.0,71080.0,0.014078]
[1770437199586,0.05366556,71106.0,71076.0,0.014079]
[1770437200097,0.05366556,71102.0,71075.0,0.014079]
[1770437200285,0.014074,71101.0,71071.0,0.01408]
[1770437200482,0.05366556,71102.0,71071.0,0.01408]
[1770437200993,0.05366556,71102.0,71075.0,0.014079]
[1770437201289,0.05366556,71102.0,71067.0,0.05412203]
[1770437201494,0.06774156,71089.0,71058.0,0.014082]
[1770437201695,0.05366556,71089.0,71055.0,0.05412203]
[1770437201991,0.07035,71122.0,71055.0,0.05412203]
[1770437201992,0.05366556,71100.0,71055.0,0.05412203]
[1770437202190,0.05366556,71100.0,71072.0,0.014079]
[1770437202390,0.05366556,71100.0,71070.0,0.01408]
[1770437202598,0.014075,71095.0,71065.0,0.014081]
[1770437202791,0.05366556,71094.0,71065.0,0.014081]
[1770437203696,0.05366556,71094.0,71075.0,0.014079]
[1770437203995,0.05366556,71094.0,71062.0,0.05412203]
[1770437204197,0.05366556,71094.0,71069.0,0.01408]
[1770437204384,0.014073,71107.0,71074.0,0.05412203]
[1770437204589,0.05366556,71106.0,71074.0,0.05412203]
[1770437204889,0.014073,71104.0,71074.0,0.05412203]
[1770437205096,0.05366556,71106.0,71068.0,0.01408]
[1770437205295,0.05366556,71099.0,71072.0,0.014079]
[1770437205998,0.5,71104.0,71080.0,0.014078]
[1770437206791,0.014072,71107.0,71080.0,0.014078]
[1770437207190,0.014073,71104.0,71076.0,0.014078]
[1770437207599,0.05366556,71102.0,71062.0,0.05412203]
[1770437207792,0.014072,71111.0,71084.0,0.014077]
[1770437208098,0.05366556,71113.0,71085.0,0.05412203]
[1770437208396,0.05366556,71113.0,71085.0,0.06819903]
[1770437208600,0.05366556,71113.0,71087.0,0.014076]
[1770437208795,0.014071,71115.0,71088.0,0.05412203]
[1770437209199,0.014071,71115.0,71089.0,0.014076]
[1770437210001,0.05366556,71112.0,71077.0,0.05412203]
[1770437210193,0.05366556,71111.0,71077.0,0.05412203]
[1770437210395,0.05366556,71111.0,71081.0,0.05412203]
[1770437210597,0.05366556,71111.0,71090.0,0.014076]
[1770437210798,0.05366556,71111.0,71089.0,0.014076]
[1770437210998,0.05366556,71111.0,71081.0,0.05412203]
[1770437211396,0.06773756,71109.0,71083.0,0.014077]
[1770437211693,0.05366556,71108.0,71086.0,0.014077]
[1770437211896,0.05366556,71106.0,71078.0,0.014078]
[1770437212087,0.05366556,71106.0,71070.0,0.05412203]
[1770437212088,0.05366556,71100.0,71070.0,0.05412203]
[1770437212294,0.014075,71096.0,71070.0,0.05412203]
[1770437212591,0.05366556,71100.0,71070.0,0.05412203]
[1770437212789,0.014075,71094.0,71070.0,0.06820203]
[1770437213394,0.014075,71094.0,71070.0,0.01408]
[1770437213799,0.014075,71094.0,71060.0,0.05412203]
[1770437213800,0.05366556,71091.0,71066.0,0.01408]
[1770437215204,0.014076,71090.0,71066.0,0.01408]
[1770437215402,0.41122616,71087.0,71060.0,0.05412203]
[1770437215604,0.014075,71093.0,71067.0,0.06820203]
[1770437215998,0.014076,71091.0,71067.0,0.06820203]
[1770437216797,0.014075,71095.0,71070.0,0.01408]